{"text_format":"3","workbook":"xlsx","n_sheets":1,"sheets":["Predračun"],"not_rendered":{"images":1,"defined_names":20},"read":"whole","date_system":"1900"}

{"sheet":"Predračun","index":0,"n_rows":39,"n_cols":7,"rows_kept":39,"merged":[[0,1,3,1],[0,3,0,6],[1,4,1,6],[2,4,2,6],[32,3,35,4],[36,3,36,6],[37,3,37,5],[38,3,38,5]]}
[{"$nulls":3},"PREDRAČUN ZA GRADBENA DELA"]
[{"$nulls":3},"Ime podjetja","| V to celico vnesite naslov podjetja."]
[{"$nulls":3},"Telefon","| V to celico vnesite številko faksa in e-poštni naslov za stik podjetja."]
[{"$nulls":3},"KOLIČINA","OPIS","CENA ENOTE","ZNESEK"]
[null,"STRANKA",null,10,"Element 1",{"v":165,"d":"165.00 €"},{"$f":"IFERROR(ElementiVrstice[[#This Row],[KOLIČINA]]*ElementiVrstice[[#This Row],[CENA ENOTE]], \"\")","v":{"v":1650,"d":"1,650.00 €"}}]
[null,"V to celico vnesite ime stranke.",null,21,"Element 2",{"v":40,"d":"40.00 €"},{"$f":"IFERROR(ElementiVrstice[[#This Row],[KOLIČINA]]*ElementiVrstice[[#This Row],[CENA ENOTE]], \"\")","v":{"v":840,"d":"840.00 €"}}]
[null,"ŠT. PREDRAČUNA",null,5,"Element 3",{"v":10.5,"d":"10.50 €"},{"$f":"IFERROR(ElementiVrstice[[#This Row],[KOLIČINA]]*ElementiVrstice[[#This Row],[CENA ENOTE]], \"\")","v":{"v":52.5,"d":"52.50 €"}}]
[null,"C-1234",null,164,"Element 4",{"v":2.75,"d":"2.75 €"},{"$f":"IFERROR(ElementiVrstice[[#This Row],[KOLIČINA]]*ElementiVrstice[[#This Row],[CENA ENOTE]], \"\")","v":{"v":451,"d":"451.00 €"}}]
[null,"DATUM",null,6,"Element 5",{"v":12,"d":"12.00 €"},{"$f":"IFERROR(ElementiVrstice[[#This Row],[KOLIČINA]]*ElementiVrstice[[#This Row],[CENA ENOTE]], \"\")","v":{"v":72,"d":"72.00 €"}}]
[null,{"$f":"TODAY()","v":"2018-11-16"},null,18,"Element 6",{"v":5.5,"d":"5.50 €"},{"$f":"IFERROR(ElementiVrstice[[#This Row],[KOLIČINA]]*ElementiVrstice[[#This Row],[CENA ENOTE]], \"\")","v":{"v":99,"d":"99.00 €"}}]
[null,"NASLOV",null,1,"Element 7",{"v":25,"d":"25.00 €"},{"$f":"IFERROR(ElementiVrstice[[#This Row],[KOLIČINA]]*ElementiVrstice[[#This Row],[CENA ENOTE]], \"\")","v":{"v":25,"d":"25.00 €"}}]
[null,"V to celico vnesite naslov stranke.",{"$nulls":4},{"$f":"IFERROR(ElementiVrstice[[#This Row],[KOLIČINA]]*ElementiVrstice[[#This Row],[CENA ENOTE]], \"\")","v":{"v":0,"d":"0.00 €"}}]
[null,"POŠTA/MESTO/DRŽAVA",{"$nulls":4},{"$f":"IFERROR(ElementiVrstice[[#This Row],[KOLIČINA]]*ElementiVrstice[[#This Row],[CENA ENOTE]], \"\")","v":{"v":0,"d":"0.00 €"}}]
[null,"V to celico vnesite poštno številko, mesto in državo stranke.",{"$nulls":4},{"$f":"IFERROR(ElementiVrstice[[#This Row],[KOLIČINA]]*ElementiVrstice[[#This Row],[CENA ENOTE]], \"\")","v":{"v":0,"d":"0.00 €"}}]
[null,"TELEFON",{"$nulls":4},{"$f":"IFERROR(ElementiVrstice[[#This Row],[KOLIČINA]]*ElementiVrstice[[#This Row],[CENA ENOTE]], \"\")","v":{"v":0,"d":"0.00 €"}}]
[null,"V to celico vnesite telefonsko številko stranke.",{"$nulls":4},{"$f":"IFERROR(ElementiVrstice[[#This Row],[KOLIČINA]]*ElementiVrstice[[#This Row],[CENA ENOTE]], \"\")","v":{"v":0,"d":"0.00 €"}}]
[null,"E-POŠTA",{"$nulls":4},{"$f":"IFERROR(ElementiVrstice[[#This Row],[KOLIČINA]]*ElementiVrstice[[#This Row],[CENA ENOTE]], \"\")","v":{"v":0,"d":"0.00 €"}}]
[null,"V to celico vnesite e-poštni naslov stranke.",{"$nulls":4},{"$f":"IFERROR(ElementiVrstice[[#This Row],[KOLIČINA]]*ElementiVrstice[[#This Row],[CENA ENOTE]], \"\")","v":{"v":0,"d":"0.00 €"}}]
[null,"PRODAJALEC",{"$nulls":4},{"$f":"IFERROR(ElementiVrstice[[#This Row],[KOLIČINA]]*ElementiVrstice[[#This Row],[CENA ENOTE]], \"\")","v":{"v":0,"d":"0.00 €"}}]
[null,"V to celico vnesite prodajalca.",{"$nulls":4},{"$f":"IFERROR(ElementiVrstice[[#This Row],[KOLIČINA]]*ElementiVrstice[[#This Row],[CENA ENOTE]], \"\")","v":{"v":0,"d":"0.00 €"}}]
[null,"PROJEKT",{"$nulls":4},{"$f":"IFERROR(ElementiVrstice[[#This Row],[KOLIČINA]]*ElementiVrstice[[#This Row],[CENA ENOTE]], \"\")","v":{"v":0,"d":"0.00 €"}}]
[null,"V to celico vnesite ime projekta.",{"$nulls":4},{"$f":"IFERROR(ElementiVrstice[[#This Row],[KOLIČINA]]*ElementiVrstice[[#This Row],[CENA ENOTE]], \"\")","v":{"v":0,"d":"0.00 €"}}]
[null,"PRIPRAVILA OSEBA:",{"$nulls":4},{"$f":"IFERROR(ElementiVrstice[[#This Row],[KOLIČINA]]*ElementiVrstice[[#This Row],[CENA ENOTE]], \"\")","v":{"v":0,"d":"0.00 €"}}]
[null,"V to celico vnesite ime osebe, ki je pripravila predračun.",{"$nulls":4},{"$f":"IFERROR(ElementiVrstice[[#This Row],[KOLIČINA]]*ElementiVrstice[[#This Row],[CENA ENOTE]], \"\")","v":{"v":0,"d":"0.00 €"}}]
[null,"NASLOVNIK",{"$nulls":4},{"$f":"IFERROR(ElementiVrstice[[#This Row],[KOLIČINA]]*ElementiVrstice[[#This Row],[CENA ENOTE]], \"\")","v":{"v":0,"d":"0.00 €"}}]
[null,"V to celico vnesite ime osebe, na katero je naslovljen ta proračun.",{"$nulls":4},{"$f":"IFERROR(ElementiVrstice[[#This Row],[KOLIČINA]]*ElementiVrstice[[#This Row],[CENA ENOTE]], \"\")","v":{"v":0,"d":"0.00 €"}}]
[null,"POGOJI PLAČILA",{"$nulls":4},{"$f":"IFERROR(ElementiVrstice[[#This Row],[KOLIČINA]]*ElementiVrstice[[#This Row],[CENA ENOTE]], \"\")","v":{"v":0,"d":"0.00 €"}}]
[null,"Neto 30",{"$nulls":4},{"$f":"IFERROR(ElementiVrstice[[#This Row],[KOLIČINA]]*ElementiVrstice[[#This Row],[CENA ENOTE]], \"\")","v":{"v":0,"d":"0.00 €"}}]
[null,"ROK",{"$nulls":4},{"$f":"IFERROR(ElementiVrstice[[#This Row],[KOLIČINA]]*ElementiVrstice[[#This Row],[CENA ENOTE]], \"\")","v":{"v":0,"d":"0.00 €"}}]
[null,{"$f":"TODAY()+30","v":"2018-12-16"},{"$nulls":4},{"$f":"IFERROR(ElementiVrstice[[#This Row],[KOLIČINA]]*ElementiVrstice[[#This Row],[CENA ENOTE]], \"\")","v":{"v":0,"d":"0.00 €"}}]
[{"$nulls":5},"DELNA VSOTA",{"$f":"SUBTOTAL(109,ElementiVrstice[ZNESEK])","v":{"v":3189.5,"d":"3,189.50 €"}}]
[{"$nulls":3},"TA PREDRAČUN VKLJUČUJE SPODNJE POGOJE:",null,"DAVČNA STOPNJA ",{"v":0.0775,"d":"7.75%"}]
[{"$nulls":3},"Vnesite pogoje tukaj.",null,"PROMETNI DAVEK ",{"$f":"IFERROR(ElementiVrstice[[#Totals],[ZNESEK]]*DavčnaStopnja, \"\")","v":{"v":247.18625,"d":"247.19 €"}}]
[{"$nulls":5},"DRUGO "]
[{"$nulls":5},"VSOTA",{"$f":"IFERROR(ElementiVrstice[[#Totals],[ZNESEK]]+G33+Drugo, \"\")","v":{"v":3436.68625,"d":"3,436.69 €"}}]
[]
[{"$nulls":3},"Podpišite spodaj, da sprejmete ponudbo:"]
[]
[{"$nulls":3},"Pooblaščen predstavnik",null,null,"Datum"]